bitfinex/quotes_ETHUSD_20240711
["timestamp","ask_amount","ask_price","bid_price","bid_amount"]
[1720722137345,0.1143317,3149.7,3149.3,3.17522]
[1720722137551,1.09997071,3149.6,3149.4,3.17518]
[1720722137775,0.1143317,3149.7,3149.5,3.1751]
[1720722137957,0.1143317,3149.7,3149.5,6.35012]
[1720722138136,0.1143317,3149.7,3149.6,3.175]
[1720722138987,0.1143317,3149.7,3149.6,6.35]
[1720722139274,0.1143317,3149.7,3149.6,8.587]
[1720722139473,0.1143317,3149.7,3149.6,11.762]
[1720722140435,0.1143317,3149.7,3149.6,12.312]
[1720722140882,0.1143317,3149.7,3149.6,14.7013]
[1720722141079,0.1143317,3149.7,3149.6,17.8763]
[1720722141287,0.1143317,3149.7,3149.6,20.8763]
[1720722141450,0.1143317,3149.7,3149.6,8.7393]
[1720722141655,0.1143317,3149.7,3149.6,6.35]
[1720722142074,0.1143317,3149.7,3149.6,9.525]
[1720722142390,0.1143317,3149.7,3149.6,11.762]
[1720722143675,0.1143317,3149.7,3149.6,15.312]
[1720722143894,0.1143317,3149.7,3149.6,17.7122]
[1720722144176,0.1143317,3149.7,3149.6,20.8872]
[1720722144570,0.1143317,3149.7,3149.6,22.44474965]
[1720722144772,0.1143317,3149.7,3149.6,19.26974965]
[1720722144956,0.1143317,3149.7,3149.6,22.44474965]
[1720722145161,0.1143317,3149.7,3149.6,17.76974965]
[1720722146075,0.1143317,3149.7,3149.6,14.59474965]
[1720722146700,0.1143317,3149.7,3149.6,17.76974965]
[1720722146868,0.1143317,3149.7,3149.6,14.04474965]
[1720722147054,0.1143317,3149.7,3149.6,11.64454965]
[1720722147254,0.1143317,3149.7,3149.6,9.40754965]
[1720722149176,0.1143317,3149.7,3149.6,6.40754965]
[1720722149373,0.1143317,3149.7,3149.6,3.23254965]
[1720722149565,0.1143317,3149.7,3149.6,0.05754965]
[1720722149954,0.1143317,3149.7,3149.4,3.17514]
[1720722150181,0.1143317,3149.7,3149.6,0.05754965]
[1720722151699,0.1143317,3149.7,3149.4,3.17516]
[1720722151905,0.1143317,3149.7,3149.6,0.05756848]
[1720722152090,0.1143317,3149.7,3149.1,3.17548]
[1720722152091,1.46734078,3149.7,3149.1,3.17548]
[1720722152280,0.36733487,3149.7,3149.6,0.05756848]
[1720722152607,0.36733487,3149.7,3148.9,3.17564]
[1720722152903,1.46736543,3149.7,3149.0,3.23343792]
[1720722153117,1.10003056,3149.6,3149.0,3.23343792]
[1720722153266,1.10003056,3149.6,3149.1,0.06350151]
[1720722153471,0.1143317,3149.7,3149.4,3.1752]
[1720722153873,0.1143317,3149.7,3149.5,0.05761338]
[1720722154304,1.09993767,3149.6,3149.5,0.05761338]
[1720722155119,0.1143317,3149.7,3149.5,0.05761338]
[1720722155429,0.1143317,3149.7,3149.5,3.23264338]
[1720722155430,1.09992557,3149.6,3149.5,3.23264338]
[1720722155585,0.1143317,3149.7,3149.5,3.23264338]
[1720722156606,1.09989315,3149.6,3149.5,3.23264338]
[1720722156932,1.09989315,3149.6,3149.5,6.40774338]
[1720722158060,0.1143317,3149.7,3149.6,6.35]
[1720722158320,0.1143317,3149.7,3149.6,14.2418]
[1720722158634,0.1143317,3149.7,3149.6,14.29936848]
[1720722160129,0.1143317,3149.7,3149.6,6.40756848]
[1720722163795,0.1143317,3149.7,3149.6,9.58256848]
[1720722163999,0.1143317,3149.7,3149.6,10.13256848]
[1720722164417,0.1143317,3149.7,3149.6,13.13256848]
[1720722168726,0.1143317,3149.7,3149.6,12.58256848]
[1720722170301,0.1143317,3149.7,3149.6,9.40756848]
[1720722170702,0.1143317,3149.7,3149.6,6.40756848]
[1720722171140,1.21412535,3149.7,3149.6,6.40756848]
[1720722171987,0.1143317,3149.7,3149.6,6.40756848]
[1720722172195,1.2141233,3149.7,3149.6,6.40756848]
[1720722172802,1.21409962,3149.7,3149.6,6.40756848]
[1720722174127,1.21409962,3149.7,3149.6,3.23256848]
[1720722174294,1.57414958,3149.7,3149.6,0.05756848]
[1720722174766,1.57414958,3149.7,3149.4,3.17516]
[1720722175053,1.09976792,3149.6,3149.2,3.17536]
[1720722175278,1.09976792,3149.6,3149.5,3.1751]
[1720722175552,0.1143317,3149.7,3149.5,3.1751]
[1720722175754,1.09990875,3149.6,3149.5,3.1751]
[1720722175915,1.09990875,3149.6,3149.5,6.3502]
[1720722176116,0.1143317,3149.7,3149.6,6.35]
[1720722177556,1.21412547,3149.7,3149.6,6.35]
[1720722179057,1.21413496,3149.7,3149.6,6.35]
[1720722180117,1.21413496,3149.7,3149.6,9.525]
[1720722181422,0.1143317,3149.7,3149.6,9.525]
[1720722181620,1.21408334,3149.7,3149.6,9.525]
[1720722182259,1.21408334,3149.7,3149.6,6.35]
[1720722182825,1.21408334,3149.7,3149.6,3.175]
[1720722183634,1.21408334,3149.7,3149.5,3.1751]
[1720722183845,1.09975164,3149.6,3149.4,3.17518]
[1720722184224,1.09975164,3149.6,3149.5,3.1751]
[1720722184842,2.3449,3149.6,3149.0,3.17557]
[1720722185084,0.24592317,3149.5,3149.0,3.17557]
[1720722185222,0.24592317,3149.5,3149.1,3.17547]
[1720722185568,1.10006117,3149.4,3149.1,3.17547]
[1720722185762,1.10006117,3149.3,3149.1,3.17547]
[1720722185969,0.24592317,3149.5,3149.1,3.17547]
[1720722185970,1.10006117,3149.2,3149.1,3.17547]
[1720722187461,1.10006117,3149.2,3148.9,3.17563]
[1720722187668,1.10006117,3149.1,3149.0,3.17559]
[1720722187825,1.10004834,3149.1,3149.0,3.17559]
[1720722188323,0.24592317,3149.5,3149.1,3.17548]
[1720722188653,1.10003917,3149.4,3149.2,3.1754]
[1720722188825,1.10003917,3149.3,3149.2,3.1754]
[1720722189025,1.10003917,3149.3,3149.0,3.17553]
[1720722189270,1.10003917,3149.2,3149.0,3.17553]
[1720722189469,1.10003917,3149.4,3149.0,3.17553]
[1720722189769,1.4691254,3149.4,3149.1,0.0579863]
[1720722189967,1.10003917,3149.3,3149.1,0.0579863]
[1720722190268,1.10003917,3149.3,3148.9,3.17566]
[1720722191165,1.10003917,3149.3,3149.0,0.05803122]
[1720722191466,2.4365,3149.2,3148.6,7.48]
[1720722191628,0.35365392,3149.1,3148.6,7.48]
[1720722191828,1.45369309,3149.1,3148.6,7.48]
[1720722192178,1.10003917,3149.0,3148.6,7.48]
[1720722192666,2.292,3148.9,3148.6,7.48]
[1720722192878,1.10003917,3148.8,3148.2,12.29]
[1720722193030,1.32923917,3148.8,3148.1,7.48]
[1720722193230,1.10003917,3148.7,3148.1,7.48]
[1720722194271,3.00028089,3148.6,3148.1,7.48]
[1720722194488,1.69822006,3148.5,3148.1,7.48]
[1720722194690,2.4021,3148.6,3148.1,7.48]
[1720722194691,2.10825207,3148.4,3148.1,7.48]
[1720722194986,2.10825207,3148.4,3147.6,31.74]
[1720722194987,3.0,3148.5,3147.6,19.77]
[1720722195191,1.10056898,3148.3,3147.6,19.77]
[1720722195487,0.16988685,3148.3,3147.6,19.77]
[1720722195704,0.16988685,3148.3,3147.6,22.947]
[1720722195705,1.69883484,3148.2,3147.6,22.947]
[1720722195887,1.69883484,3148.1,3147.6,22.947]
[1720722196046,0.16988685,3148.3,3147.6,3.177]
[1720722196047,1.69883484,3148.0,3147.6,3.177]
[1720722196383,1.69883484,3147.9,3147.4,3.17716]
[1720722196567,0.59832219,3147.8,3147.4,3.17716]
[1720722197004,2.3073,3147.9,3147.4,3.17716]
[1720722197199,0.59832571,3147.8,3147.4,3.17716]
[1720722197366,2.3073,3147.9,3147.4,3.17716]
[1720722198288,1.69904327,3147.8,3147.3,7.48]
[1720722198491,1.6991114,3147.7,3147.3,7.48]
[1720722198673,1.69921609,3147.6,3147.3,7.48]
[1720722198880,1.69927511,3147.5,3147.3,7.48]
[1720722199114,1.10078425,3147.4,3147.3,7.48]
[1720722199409,1.10078425,3147.4,3146.8,7.48]
[1720722199410,1.10085941,3147.4,3146.8,7.48]
[1720722199622,1.10085941,3147.3,3146.8,7.48]
[1720722199795,1.10085941,3147.4,3146.8,7.48]
[1720722199988,0.16992751,3147.5,3146.8,10.65778]
[1720722200187,1.69940935,3147.4,3146.8,10.65778]
[1720722200369,3.0,3147.8,3146.8,10.65778]
[1720722200578,1.69941964,3147.7,3146.8,7.48]
[1720722200805,1.69941964,3147.6,3146.8,7.48]
[1720722201017,1.1008525,3147.5,3146.8,10.65781]
[1720722201318,1.1008525,3147.4,3146.8,7.48]
[1720722201523,1.1008525,3147.7,3146.8,7.48]
[1720722201693,1.51094056,3147.6,3146.8,7.48]
[1720722202021,1.10085567,3147.5,3146.8,7.48]
[1720722202174,4.1984343,3147.4,3146.8,7.48]
[1720722202378,1.10085567,3147.3,3146.8,7.48]
[1720722202606,0.35997557,3147.2,3146.8,7.48]
[1720722204080,0.35997557,3147.2,3146.4,19.77]
[1720722204385,0.35997557,3147.2,3146.4,7.48]
[1720722204386,3.47100934,3147.1,3146.4,7.48]
[1720722204609,3.47100934,3147.1,3146.5,0.05772919]
[1720722204610,2.3699,3147.1,3146.5,0.05772919]
[1720722205009,5.3699,3147.1,3146.5,0.05772919]
[1720722205204,0.57298756,3147.0,3146.5,0.05772919]
[1720722206414,2.3699,3147.1,3146.5,0.05772919]
[1720722206618,5.3699,3147.1,3146.5,0.05772919]
[1720722210424,5.3699,3147.1,3146.1,10.65851]
[1720722210620,5.3699,3147.1,3146.6,0.05585923]
[1720722210821,5.3699,3147.1,3146.1,10.65851]
[1720722211145,0.57298756,3147.0,3146.1,10.65851]
[1720722211442,3.57298756,3147.0,3146.2,0.05626899]
[1720722212962,3.57298756,3147.0,3146.3,3.17833]
[1720722213169,3.57298756,3147.0,3146.3,3.23455399]
[1720722214987,2.3699,3147.1,3146.5,3.17813]
[1720722215151,2.3644,3147.5,3146.3,2.37007603]
[1720722215348,2.3644,3147.5,3146.9,3.17765]
[1720722215593,2.3644,3147.5,3147.0,3.17758]
[1720722215769,2.3644,3147.5,3147.0,3.23378183]
[1720722217173,3.0,3148.0,3147.0,0.05620183]
[1720722217174,2.3645,3148.0,3147.0,0.05620183]
[1720722217379,1.10075294,3147.9,3147.3,3.17731]
[1720722217580,2.64906987,3148.0,3147.3,3.17731]
[1720722217786,2.64906987,3148.0,3147.4,0.05596056]
[1720722217990,2.3645,3148.0,3147.6,3.17701]
[1720722218492,2.3645,3148.0,3147.7,0.05581152]
[1720722219507,2.3645,3148.0,3147.7,3.23272152]
[1720722219718,2.2847,3148.6,3147.8,3.17681]
[1720722219885,1.10051072,3148.5,3148.0,3.17654]
[1720722220085,2.56128987,3148.6,3148.1,3.1765]
[1720722220505,2.56128987,3148.6,3148.1,3.2320436]
[1720722220875,2.56128987,3148.6,3148.1,0.0555436]
[1720722221184,4.35656173,3148.5,3148.0,3.1766]
[1720722221521,1.10043274,3148.4,3148.1,0.05529806]
[1720722221687,1.10043274,3148.4,3147.8,3.17678]
[1720722221892,1.10043274,3148.4,3148.2,0.05525312]
[1720722222112,3.0,3148.5,3148.0,3.17659]
[1720722222311,1.10046663,3148.4,3148.3,0.05520818]
[1720722222624,1.10046663,3148.4,3148.0,3.17659]
[1720722222819,3.0,3148.5,3148.3,0.05520818]
[1720722223017,1.10047129,3148.4,3148.0,3.17659]
[1720722223227,1.10047129,3148.3,3148.0,3.17659]
[1720722223429,1.10047129,3148.4,3147.8,3.17678]
[1720722223745,1.10047129,3148.3,3147.9,3.17671]
[1720722223896,2.2847,3148.6,3147.9,3.17671]
[1720722223897,4.10047129,3148.5,3147.9,3.17671]
[1720722224100,1.73898842,3148.4,3147.9,3.17671]
[1720722224293,1.10047129,3148.3,3147.9,3.17671]
[1720722225397,1.10047129,3148.3,3147.6,3.17698]
[1720722226197,1.10047129,3148.3,3147.6,3.17694]
[1720722226396,1.10047129,3148.3,3147.7,3.17689]
[1720722227841,1.57437013,3148.3,3147.5,3.17704]
[1720722228015,1.10047129,3148.2,3147.5,3.17704]
[1720722228219,1.10047129,3148.2,3147.4,3.17718]
[1720722228220,1.10047129,3148.2,3147.6,3.17701]
[1720722228437,1.10047129,3148.2,3147.8,3.17681]
[1720722228754,0.63851713,3148.4,3147.8,3.17677]
[1720722229051,1.4643911,3148.3,3147.9,3.1767]
[1720722229222,1.10053939,3148.2,3147.9,3.1767]
[1720722229643,3.0,3148.5,3147.9,3.1767]
[1720722229844,1.10048283,3148.4,3147.9,3.1767]
[1720722230049,1.10048283,3148.3,3147.9,3.1767]
[1720722230243,1.10048283,3148.4,3147.9,3.1767]
[1720722232577,1.10048302,3148.3,3147.9,3.1767]
[1720722232859,3.0,3148.5,3147.9,3.1767]
[1720722233065,1.10045896,3148.4,3147.9,3.1767]
[1720722233245,1.10045896,3148.3,3147.9,3.1767]
[1720722233558,0.52847,3148.5,3147.9,3.1767]
[1720722233764,1.10047791,3148.4,3147.9,3.1767]
[1720722233977,3.0,3148.5,3147.9,3.1767]
[1720722234259,2.2847,3148.6,3147.9,3.1767]
[1720722234260,1.10045722,3148.4,3147.9,3.1767]
[1720722234469,1.10045722,3148.3,3148.0,0.05535716]
[1720722234685,4.10045722,3148.5,3148.0,0.05535716]
[1720722234967,1.10045761,3148.4,3148.0,0.05535716]
[1720722235177,3.63851572,3148.5,3148.0,3.23197716]
[1720722235532,1.69864009,3148.4,3148.0,3.23197716]
[1720722235839,3.63851572,3148.5,3148.0,3.23197716]
[1720722236166,1.69865927,3148.4,3148.0,3.23197716]
[1720722236366,2.2847,3148.6,3148.0,3.23197716]
[1720722236664,1.69862951,3148.5,3148.0,3.23197716]
[1720722236866,1.69862951,3148.4,3148.0,3.23197716]
[1720722237167,2.2847,3148.6,3148.0,3.23197716]
[1720722237463,1.69861386,3148.5,3148.0,3.23197716]
[1720722237662,1.69861386,3148.4,3148.0,3.23197716]
[1720722237829,1.10043832,3148.3,3148.0,3.23197716]
[1720722238032,1.10043832,3148.5,3148.0,3.23197716]
[1720722238359,0.59819645,3148.4,3148.0,3.23197716]
[1720722238539,1.10043832,3148.3,3148.0,3.23197716]
[1720722238963,1.10043832,3148.5,3148.0,3.23197716]
[1720722239161,0.59821006,3148.4,3148.0,3.23197716]
[1720722239362,1.10043832,3148.3,3148.0,0.05535716]
[1720722239536,1.69874625,3148.2,3147.8,3.17675]
[1720722239744,1.10049774,3148.1,3147.9,0.0553911]
[1720722239949,0.36136083,3148.5,3147.9,3.2320511]
[1720722240129,1.98620338,3148.4,3147.9,3.2320511]
[1720722240328,1.6987503,3148.3,3147.9,3.2320511]
[1720722240567,1.6987503,3148.2,3147.9,3.2320511]
[1720722240766,1.10050819,3148.1,3147.9,3.2320511]
[1720722240931,1.10050819,3148.3,3147.9,3.2320511]
[1720722241132,1.69874516,3148.2,3147.9,3.2320511]
[1720722241473,1.10050819,3148.1,3147.9,3.2320511]
[1720722241770,1.10050819,3148.0,3147.9,3.2320511]
[1720722242129,1.10048243,3148.0,3147.9,3.2320511]
[1720722242441,1.10048243,3148.0,3147.9,0.0553911]
[1720722242642,1.10051056,3148.0,3147.9,0.0553911]
[1720722243337,1.10051056,3148.0,3147.9,3.2321111]
[1720722243539,1.10051056,3148.0,3147.9,0.0553911]
[1720722245187,1.10053531,3148.0,3147.9,0.0553911]
[1720722245543,1.10051839,3148.0,3147.9,3.2321111]
[1720722245745,1.10050739,3148.0,3147.9,3.2321111]
[1720722246639,1.10050739,3148.0,3147.9,0.0553911]
[1720722247083,1.10050739,3148.0,3147.5,10.65712]
[1720722247243,1.10050739,3147.9,3147.5,10.65712]
[1720722247445,1.10050739,3147.8,3147.6,3.17701]
[1720722247646,1.10050739,3148.4,3147.5,7.48]
[1720722247845,0.22847,3148.5,3147.5,7.48]
[1720722247846,1.10050739,3148.3,3147.5,10.65707]
[1720722248045,1.10050739,3148.2,3147.5,10.65707]
[1720722248239,1.10050739,3148.1,3147.5,10.65707]
[1720722248485,1.10050739,3148.4,3147.5,10.65707]
[1720722248678,1.10050739,3148.3,3147.5,10.65707]
[1720722249074,1.10059103,3148.2,3147.5,10.65707]
[1720722249248,1.10059103,3148.1,3147.5,10.65707]
[1720722249450,1.10059103,3148.0,3147.6,0.05551019]
[1720722249651,1.10059103,3148.4,3147.6,0.05551019]
[1720722249851,1.10059103,3148.3,3147.6,0.05551019]
[1720722250075,1.10059103,3148.2,3147.6,0.05551019]
[1720722250398,0.22847,3148.5,3147.6,0.05551019]
[1720722250399,2.3448,3148.0,3147.6,0.05551019]
[1720722250594,1.10059103,3147.9,3147.6,0.05551019]
[1720722251459,1.10059103,3147.8,3147.6,0.05551019]
[1720722251700,1.10059103,3147.7,3147.6,0.05551019]
[1720722251867,1.10059103,3147.9,3147.6,0.05551019]
[1720722252067,1.44513013,3147.8,3147.6,0.05551019]
[1720722252277,1.10059103,3147.7,3147.6,0.05551019]
[1720722252602,1.10071693,3147.7,3147.6,0.05551019]
[1720722253112,1.10076968,3147.7,3147.6,0.05551019]
[1720722253459,3.38606968,3147.7,3147.6,0.05551019]
[1720722253811,4.05913056,3147.7,3147.6,0.05557786]
[1720722254009,4.05913056,3147.7,3146.9,12.29]
[1720722254165,2.2853,3147.5,3147.0,0.05584764]
[1720722254366,1.10076968,3147.4,3146.8,7.48]
[1720722254587,1.10076968,3147.4,3146.9,0.05589261]
[1720722254786,0.33860697,3147.3,3146.8,7.48]
[1720722254958,1.10076968,3147.2,3146.9,0.05589261]
[1720722255162,1.10076968,3147.2,3146.8,7.48]
[1720722255404,0.33860697,3147.3,3146.9,0.05589261]
[1720722255577,0.33860697,3147.3,3146.2,7.48]
[1720722255578,1.10103087,3147.2,3146.2,7.48]
[1720722255779,2.2741,3147.1,3146.3,0.05628372]
[1720722256088,1.43858638,3147.0,3146.3,0.05628372]
[1720722256291,1.10107329,3146.9,3146.3,0.05628372]
[1720722256767,1.10107329,3146.9,3146.3,3.23452372]
[1720722256971,1.10107329,3147.0,3146.4,3.17813]
[1720722257217,1.10107329,3146.9,3146.5,0.05441695]
[1720722257418,2.2741,3147.1,3146.5,0.05441695]
[1720722257718,1.10096177,3146.8,3146.5,0.05441695]
[1720722258381,1.10096815,3146.7,3146.5,0.05441695]
[1720722258577,1.10096815,3146.6,3146.5,0.05441695]
[1720722260307,2.4394,3147.5,3146.5,3.23254695]
[1720722260626,1.57789305,3147.4,3146.5,3.23254695]
[1720722260931,1.10098115,3147.3,3146.5,3.23254695]
[1720722261098,1.10098115,3147.2,3146.5,3.23254695]
[1720722261286,1.10098115,3147.1,3146.5,3.23254695]
[1720722261486,1.10098115,3147.0,3146.5,3.23254695]
[1720722261686,1.10098115,3146.9,3146.5,3.23254695]
[1720722261911,3.4769119,3147.4,3146.7,3.17793]
[1720722261912,1.10098115,3146.8,3146.7,3.17793]
[1720722262515,1.10098115,3146.8,3146.7,3.23225698]
[1720722263023,1.10098115,3146.8,3146.7,0.05432698]
[1720722263320,1.10098115,3146.8,3146.5,6.3561]
[1720722263555,3.0,3147.4,3146.7,0.05432698]
[1720722263729,2.4394,3147.5,3146.6,3.17803]
[1720722263730,1.64485166,3147.3,3146.6,3.23240196]
[1720722264034,1.10091166,3147.2,3146.7,0.05432698]
[1720722264190,1.10089962,3147.1,3146.7,0.05432698]
[1720722264392,1.10089962,3147.0,3146.7,0.05432698]
[1720722264587,1.10089962,3147.3,3146.7,3.23224698]
[1720722264812,1.75492958,3147.3,3146.7,3.23224698]
[1720722265007,1.10089962,3147.2,3146.7,0.05432698]
[1720722265226,1.10089962,3147.2,3146.5,6.35609]
[1720722265456,1.10089962,3147.2,3146.8,0.054282]
[1720722265623,1.10089962,3147.2,3146.3,3.17827]
[1720722265826,0.17549296,3147.1,3146.4,0.05446194]
[1720722266027,1.10089962,3147.0,3146.4,0.05446194]
[1720722266354,2.2647,3146.9,3146.4,0.05446194]
[1720722266757,1.10107484,3146.8,3146.2,7.48]
[1720722266917,1.10107484,3146.7,3146.5,0.05446575]
[1720722267246,0.33657748,3146.7,3146.6,0.05442076]
[1720722267454,1.43768203,3146.7,3146.6,0.05442076]
[1720722267630,1.43768203,3146.7,3146.2,7.48]
[1720722267827,1.10110455,3146.6,3146.3,0.05455573]
[1720722268419,2.3862,3146.5,3146.3,0.05455573]
[1720722268618,1.44983501,3146.4,3146.3,0.05455573]
[1720722268819,1.44983501,3146.4,3145.7,7.48]
[1720722269147,1.10110455,3146.3,3145.8,0.05308739]
[1720722270377,0.34873046,3146.4,3145.8,0.05308739]
[1720722270689,1.10130391,3146.3,3145.8,0.05308739]
[1720722272099,1.48492735,3146.3,3145.8,0.05308739]
[1720722272247,1.10130391,3146.3,3145.8,0.05308739]
[1720722272446,2.3862,3146.5,3145.8,0.05308739]
[1720722272447,1.10130391,3146.2,3145.8,0.05308739]
[1720722272647,1.10130391,3146.1,3145.5,3.17913]
[1720722272882,1.10130391,3146.0,3145.6,0.05344983]
[1720722273088,1.10130391,3146.4,3145.6,0.05344983]
[1720722273383,1.4500543,3146.3,3145.6,0.05344983]
[1720722273696,0.34875039,3146.3,3145.6,0.05344983]
[1720722273987,1.1013134,3146.2,3145.6,0.05344983]
[1720722274189,0.34875039,3146.3,3145.6,0.05344983]
[1720722274486,1.10131144,3146.2,3145.6,0.05344983]
[1720722276567,0.34875039,3146.3,3145.6,0.05344983]
[1720722276787,1.10130716,3146.2,3145.6,0.05344983]
[1720722277150,0.34875039,3146.3,3145.6,0.05344983]
[1720722277384,1.10133678,3146.2,3145.6,0.05344983]
[1720722277583,1.10133678,3146.1,3145.6,0.05344983]
[1720722277783,1.10133678,3146.0,3145.6,0.05344983]
[1720722278096,1.10133678,3145.9,3145.6,0.05344983]
[1720722278300,1.10133678,3145.8,3145.6,0.05344983]
[1720722278604,0.34875039,3146.3,3145.6,0.05344983]
[1720722278757,1.10132616,3146.2,3145.6,0.05344983]
[1720722278959,0.34875039,3146.3,3145.6,0.05344983]
[1720722278960,1.10132616,3146.1,3145.6,0.05344983]
[1720722279162,1.10132616,3146.0,3145.6,0.05344983]
[1720722279372,1.10132616,3145.9,3145.6,0.05344983]
[1720722279549,1.10132616,3146.2,3145.6,0.05344983]
[1720722279744,1.10132616,3146.1,3145.6,0.05344983]
[1720722279965,1.10132616,3146.0,3145.6,0.05344983]
[1720722280169,1.10132616,3146.2,3145.6,0.05344983]
[1720722280468,1.4362012,3146.2,3145.7,0.05359066]
[1720722280869,1.4362012,3146.2,3145.2,3.17938]
[1720722280870,1.10132616,3146.1,3145.2,3.17938]
[1720722281214,2.4788,3146.0,3145.1,10.65949]
[1720722281521,1.45933878,3145.9,3145.2,0.05386931]
[1720722281804,1.10132616,3145.8,3145.2,0.05386931]
[1720722283996,0.35801262,3145.9,3145.2,0.05386931]
[1720722284240,1.10156444,3145.8,3145.2,0.05386931]
[1720722284376,0.35801262,3145.9,3145.2,0.05386931]
[1720722284576,1.38525041,3145.8,3145.2,0.05386931]
[1720722284794,1.10156915,3145.7,3145.2,0.05386931]
[1720722287032,1.10155999,3145.6,3145.2,0.05386931]
[1720722287185,1.10155999,3145.5,3145.2,0.05386931]
[1720722287392,2.4788,3146.0,3145.2,0.05386931]
[1720722287589,1.10149717,3145.4,3145.2,0.05386931]
[1720722287798,1.10149717,3145.3,3145.2,0.05386931]
[1720722287976,1.10149717,3145.8,3145.2,0.05386931]
[1720722288181,0.41014972,3145.7,3145.0,3.17964]
[1720722288381,1.10149717,3145.6,3145.0,3.17964]
[1720722288626,1.10149717,3145.5,3145.1,0.05400102]
[1720722288915,1.10149717,3145.4,3145.1,0.05400102]
[1720722289081,1.10149717,3145.3,3145.1,0.05400102]
[1720722289282,3.0,3145.9,3145.1,0.05400102]
[1720722289508,1.64938365,3145.8,3145.1,0.05400102]
[1720722289672,1.10150365,3145.7,3145.1,0.05400102]
[1720722289894,1.10150365,3145.6,3145.1,0.05400102]
[1720722290093,1.10150365,3145.5,3145.1,0.05400102]
[1720722290289,1.10150365,3145.4,3145.1,0.05400102]
[1720722290489,0.54788,3145.8,3145.1,0.05400102]
[1720722290490,1.10150365,3145.3,3145.1,0.05400102]
[1720722290693,1.10150365,3145.7,3145.1,0.05400102]
[1720722290915,0.54788,3145.8,3145.1,0.05400102]
[1720722291136,1.10157267,3145.7,3145.1,0.05400102]
[1720722291298,1.10157267,3145.6,3145.1,0.05400102]
[1720722291630,1.10157267,3145.5,3145.1,0.05400102]
[1720722291834,1.10157267,3145.4,3145.1,0.05400102]
[1720722292037,1.10157267,3145.3,3145.1,0.05400102]
[1720722292330,1.10157267,3145.2,3145.1,0.05400102]
[1720722293230,1.10157267,3145.2,3145.1,8.78208102]
[1720722293416,3.33487504,3146.2,3145.3,3.17929]
[1720722293615,1.70205611,3146.1,3145.4,0.05393216]
[1720722293929,1.10145357,3146.0,3145.4,0.05393216]
[1720722294135,1.10145357,3145.9,3145.4,0.05393216]
[1720722294301,1.10145357,3145.8,3145.4,0.05393216]
[1720722294641,1.1014278,3145.7,3145.5,0.05388715]
[1720722294971,1.10142916,3145.6,3145.3,3.17929]
[1720722295131,1.10142916,3145.5,3145.3,3.17929]
[1720722295327,1.10142916,3146.0,3145.3,3.17929]
[1720722295546,0.17020317,3145.9,3145.3,3.17929]
[1720722295767,1.10142916,3145.8,3145.3,3.17929]
[1720722296533,1.10142916,3145.8,3145.5,3.17907]
[1720722296766,3.33487504,3146.2,3145.5,3.17907]
[1720722296767,1.10142916,3146.0,3145.6,3.17898]
[1720722297073,1.10142916,3145.9,3145.8,6.35768]
[1720722297239,1.10123186,3145.9,3145.8,6.35768]
[1720722299669,1.10123186,3145.9,3145.8,3.17884]
[1720722300132,1.10123186,3145.9,3145.6,3.17899]
[1720722300329,1.10123186,3145.8,3145.4,3.17916]
[1720722300554,1.69926173,3146.7,3146.0,3.17862]
[1720722300759,1.10121393,3146.6,3146.0,5.56032]
[1720722300960,1.10121393,3146.6,3146.0,3.17862]
[1720722300961,1.10117337,3146.5,3146.0,3.17862]
[1720722301130,1.10117337,3146.4,3145.8,10.65875]
[1720722301341,1.10117337,3146.5,3145.8,10.65875]
[1720722301544,1.10117337,3146.5,3145.8,7.48]
[1720722303975,1.10128053,3146.4,3145.8,7.48]
[1720722304271,1.10126834,3146.3,3145.8,7.48]
[1720722304476,1.10126834,3146.2,3145.8,7.48]
[1720722304771,1.10126834,3146.1,3145.8,10.65884]
[1720722305001,1.10126834,3146.0,3145.8,10.65884]
[1720722305201,1.10126834,3146.5,3146.0,3.17854]
[1720722305411,1.10126834,3146.4,3146.0,3.17854]
[1720722305704,3.59802987,3146.8,3146.0,3.17854]
[1720722305705,1.10126834,3146.3,3146.0,3.17854]
[1720722305903,1.10126834,3146.2,3146.0,3.17854]
[1720722306081,1.10126834,3146.1,3146.0,3.17854]
[1720722306683,1.10126834,3146.1,3145.9,3.17874]
[1720722306684,1.1011779,3146.1,3145.9,3.17874]
[1720722306894,1.1011779,3146.0,3145.9,3.17874]
[1720722307080,1.1011779,3146.0,3145.7,3.17891]
[1720722307283,1.10126226,3145.9,3145.7,3.17891]
[1720722307487,1.10126226,3145.8,3145.7,3.17891]
[1720722307708,1.10126226,3146.2,3145.7,6.35779]
[1720722307890,0.5989682,3146.1,3145.8,3.17883]
[1720722308093,1.10126226,3146.0,3145.8,3.17883]
[1720722308408,0.5989682,3145.9,3145.8,3.17883]
[1720722308573,1.70023046,3145.9,3145.8,3.17883]
[1720722309170,1.70023046,3145.9,3145.6,3.17895]
[1720722309366,1.70023046,3145.8,3145.6,3.17895]
[1720722309571,2.4163,3146.3,3145.7,3.23251019]
[1720722309788,1.94187767,3146.2,3145.7,3.23251019]
[1720722310047,1.70024767,3146.1,3145.7,0.05357019]
[1720722310209,0.59896962,3146.0,3145.3,10.65929]
[1720722310408,1.70024767,3146.0,3145.3,13.83855]
[1720722310622,1.83963928,3145.9,3145.4,0.05370523]
[1720722310805,2.94105586,3145.8,3145.3,10.65926]
[1720722311011,2.94105586,3145.7,3145.4,0.05370523]
[1720722311238,1.70051707,3145.6,3145.3,10.65926]
[1720722311441,1.70051707,3145.5,3145.4,3.17924]
[1720722311642,1.70051707,3145.5,3145.4,3.23294523]
[1720722312338,1.10141658,3145.5,3145.4,0.05370523]
[1720722312567,2.94104521,3145.5,3145.4,0.05370523]
[1720722313021,2.94104521,3145.5,3145.3,10.65927]
[1720722313221,2.33331293,3146.1,3145.3,10.65927]
[1720722313222,1.70051707,3145.4,3145.3,10.65927]
[1720722313527,2.941074,3145.4,3145.3,10.65927]
[1720722314131,2.94107062,3145.4,3145.3,3.17927]
[1720722314324,2.94107062,3145.4,3145.2,3.17944]
[1720722314527,0.24163,3146.2,3145.2,6.35882]
[1720722314528,1.10144459,3145.3,3145.2,6.35882]
[1720722314749,1.70054637,3145.3,3145.2,6.35882]
[1720722314951,1.70054637,3145.3,3144.8,10.65982]
[1720722314952,1.10144459,3145.3,3145.1,3.17948]
[1720722315157,1.70054637,3145.2,3145.1,3.17948]
[1720722315326,1.10144459,3145.2,3145.1,3.17948]
[1720722315529,0.59910178,3145.2,3145.1,3.17948]
[1720722316147,1.10144459,3145.2,3145.1,3.17948]